bitfinex-derivatives/quotes_BNBF0:USTF0_20250507
["timestamp","ask_amount","ask_price","bid_price","bid_amount"]
[1746660386291,1.26884712,602.82,602.03,4.85120935]
[1746660386491,1.26884712,602.81,602.03,4.85120935]
[1746660386691,1.26884712,602.8,602.03,4.85120935]
[1746660386891,1.26884712,602.79,602.03,4.85120935]
[1746660387187,1.26884712,602.78,602.03,4.85120935]
[1746660387391,0.28888059,602.88,602.03,4.85120935]
[1746660387392,1.26874716,602.77,602.03,4.85120935]
[1746660387591,1.26874716,602.76,602.03,4.85120935]
[1746660387787,1.26874716,602.75,602.03,4.85120935]
[1746660387991,1.26874716,602.74,602.03,4.85120935]
[1746660388189,1.26874716,602.73,602.03,4.85120935]
[1746660388386,1.26874716,602.72,602.03,4.85120935]
[1746660388592,1.26874716,602.71,602.03,4.85120935]
[1746660388788,1.26874716,602.7,602.03,4.85120935]
[1746660388988,1.26874716,602.69,602.03,4.85120935]
[1746660389194,1.26874716,602.68,602.03,4.85120935]
[1746660389488,1.26874716,602.67,602.03,4.85120935]
[1746660389691,1.26874716,602.66,602.03,4.85120935]
[1746660389889,1.26874716,602.65,602.03,4.85120935]
[1746660390192,1.26874716,602.64,602.03,4.85120935]
[1746660390393,1.26874716,602.63,602.03,4.85120935]
[1746660390593,1.26874716,602.62,602.03,4.85120935]
[1746660390790,1.26874716,602.61,602.03,4.85120935]
[1746660390992,1.26874716,602.6,602.03,4.85120935]
[1746660391191,1.26768279,602.59,602.03,4.85120935]
[1746660391394,1.26768279,602.58,602.03,4.85120935]
[1746660391594,1.26768279,602.57,602.03,4.85120935]
[1746660391794,1.26768279,602.56,602.03,4.85120935]
[1746660392095,1.26768279,602.55,602.03,4.85120935]
[1746660392295,1.26768279,602.54,602.03,2.79520935]
[1746660392594,1.26768279,602.53,602.03,2.79520935]
[1746660392795,1.26768279,602.52,602.03,2.79520935]
[1746660392991,1.26768279,602.51,602.03,2.79520935]
[1746660393188,1.26768279,602.5,602.03,2.79520935]
[1746660393391,0.28890217,602.88,602.03,2.79520935]
[1746660393594,1.26749474,602.87,602.03,2.79520935]
[1746660393792,1.26749474,602.86,602.03,2.79520935]
[1746660393996,1.26749474,602.85,602.03,2.79520935]
[1746660394189,1.26749474,602.84,602.03,2.79520935]
[1746660394390,1.26749474,602.83,602.03,2.79520935]
[1746660394594,1.26749474,602.82,602.03,2.79520935]
[1746660394796,1.26749474,602.81,602.03,2.79520935]
[1746660394994,1.26750599,602.8,602.03,2.79520935]
[1746660395192,1.26750599,602.79,602.03,3.96720935]
[1746660395391,1.26750599,602.78,602.03,3.96720935]
[1746660395690,1.26750599,602.77,602.03,3.96720935]
[1746660395895,1.26750599,602.76,602.03,5.24920935]
[1746660396096,1.26750599,602.75,602.03,5.24920935]
[1746660396293,1.26750599,602.74,602.03,5.24920935]
[1746660396491,1.26750599,602.73,602.03,5.24920935]
[1746660396693,1.26750599,602.72,602.03,5.24920935]
[1746660396895,1.26750599,602.71,602.03,5.24920935]
[1746660397096,1.26750599,602.7,602.03,5.24920935]
[1746660397293,1.26750599,602.69,602.03,5.24920935]
[1746660397496,1.26750599,602.68,602.03,5.24920935]
[1746660397697,1.26750599,602.67,602.03,5.24920935]
[1746660397894,1.26750599,602.66,602.03,5.24920935]
[1746660398094,1.26750599,602.65,602.03,5.24920935]
[1746660398296,1.26750599,602.64,602.03,5.24920935]
[1746660398498,1.26750599,602.63,602.03,5.24920935]
[1746660398692,1.26758019,602.62,602.03,5.24920935]
[1746660398894,1.26758019,602.61,602.03,5.24920935]
[1746660399095,1.26758019,602.6,602.03,5.24920935]
[1746660399298,1.26758019,602.59,602.03,5.24920935]
[1746660399499,1.26758019,602.58,602.03,5.24920935]
[1746660399700,1.26758019,602.57,602.03,5.24920935]
[1746660399999,1.26758019,602.56,602.03,5.24920935]
[1746660400202,1.26758019,602.55,602.03,4.14220935]
[1746660400500,1.26764701,602.54,602.03,4.14220935]
[1746660400700,1.26764701,602.53,602.03,4.14220935]
[1746660400901,1.26764701,602.52,602.03,4.14220935]
[1746660401097,1.26764701,602.51,602.03,4.14220935]
[1746660401301,1.26764701,602.5,602.03,4.14220935]
[1746660401497,1.26764701,602.49,602.03,4.14220935]
[1746660401802,0.28890697,602.88,602.03,4.14220935]
[1746660402001,1.26749884,602.87,602.03,4.14220935]
[1746660402202,1.26749884,602.86,602.03,4.14220935]
[1746660402403,1.26749884,602.85,602.03,4.14220935]
[1746660402603,1.26749884,602.84,602.03,4.14220935]
[1746660402899,1.26749884,602.83,602.03,4.14220935]
[1746660403098,1.26749884,602.82,602.03,4.14220935]
[1746660403303,1.26749884,602.81,602.03,4.14220935]
[1746660403506,1.26749884,602.8,602.03,4.14220935]
[1746660403704,1.26749884,602.79,602.03,4.14220935]
[1746660403898,1.26749884,602.78,602.03,4.14220935]
[1746660404102,1.26749884,602.77,602.03,4.14220935]
[1746660404302,1.26749884,602.76,602.03,5.09720935]
[1746660404504,1.26749884,602.75,602.03,5.09720935]
[1746660404704,1.26749884,602.74,602.03,5.09720935]
[1746660404902,1.26749884,602.73,602.03,5.09720935]
[1746660405102,1.26749884,602.72,602.03,5.09720935]
[1746660405404,1.26749884,602.71,602.03,5.09720935]
[1746660405607,1.26749884,602.7,602.03,5.09720935]
[1746660405905,1.26749884,602.69,602.03,5.09720935]
[1746660406104,1.26785595,602.68,602.03,5.09720935]
[1746660406400,1.26785595,602.67,602.03,5.09720935]
[1746660406606,1.26785595,602.66,602.03,5.09720935]
[1746660406800,0.33148804,603.34,602.03,5.09720935]
[1746660406801,1.26785595,602.65,602.03,5.09720935]
[1746660406999,1.26785595,602.64,602.03,5.09720935]
[1746660407203,1.26785595,602.63,602.03,5.09720935]
[1746660407505,1.26785595,602.62,602.03,5.09720935]
[1746660407706,1.26785595,602.61,602.03,5.09720935]
[1746660407899,1.26785595,602.6,602.03,5.09720935]
[1746660408203,1.26785595,602.59,602.03,5.09720935]
[1746660408401,1.26785595,602.58,602.03,5.09720935]
[1746660408601,1.26785595,602.57,602.03,5.09720935]
[1746660408808,1.26785595,602.56,602.03,5.09720935]
[1746660409008,1.26785595,602.55,602.03,5.09720935]
[1746660409204,1.26785595,602.54,602.03,5.09720935]
[1746660409413,1.26785595,602.53,602.03,5.09720935]
[1746660409613,1.26785595,602.52,602.03,5.09720935]
[1746660409909,1.26785595,602.51,602.03,5.09720935]
[1746660410114,1.26785595,602.5,602.03,5.09720935]
[1746660410313,1.26785595,602.49,602.03,5.09720935]
[1746660410509,1.26785595,602.48,602.03,5.09720935]
[1746660410712,1.26785595,602.47,602.03,5.09720935]
[1746660410910,0.28890937,602.88,602.03,5.09720935]
[1746660411113,1.26844782,602.87,602.03,5.09720935]
[1746660411312,1.26844782,602.86,602.03,5.09720935]
[1746660411510,1.26844782,602.85,602.03,5.09720935]
[1746660411716,1.26844782,602.84,602.03,5.09720935]
[1746660411917,1.26844782,602.83,602.03,5.09720935]
[1746660412112,1.26844782,602.82,602.03,5.09720935]
[1746660412314,1.26844782,602.81,602.03,5.09720935]
[1746660412516,1.26844782,602.8,602.03,5.09720935]
[1746660412716,1.26844782,602.79,602.03,5.09720935]
[1746660412914,1.26844782,602.78,602.03,5.09720935]
[1746660413118,1.26844782,602.77,602.03,5.09720935]
[1746660413319,1.26844782,602.76,602.03,5.09720935]
[1746660413520,1.26844782,602.75,602.03,5.09720935]
[1746660413717,1.26844782,602.74,602.03,5.09720935]
[1746660413919,1.26844782,602.73,602.03,5.09720935]
[1746660414214,1.26844782,602.72,602.03,5.09720935]
[1746660414413,1.26844782,602.71,602.03,5.09720935]
[1746660414618,1.26844782,602.7,602.03,5.09720935]
[1746660414918,1.26844782,602.69,602.03,5.09720935]
[1746660415114,1.26844782,602.68,602.03,5.09720935]
[1746660415313,1.26844782,602.67,602.03,5.09720935]
[1746660415515,1.26889939,602.66,602.03,5.09720935]
[1746660415712,1.26889939,602.65,602.03,5.09720935]
[1746660415919,1.26889939,602.64,602.03,5.09720935]
[1746660416120,1.26889939,602.63,602.03,5.09720935]
[1746660416318,1.26889939,602.62,602.03,5.09720935]
[1746660416517,1.26889939,602.61,602.03,5.09720935]
[1746660416717,1.26889939,602.6,602.03,5.09720935]
[1746660416917,1.26889939,602.59,602.03,5.09720935]
[1746660417118,1.26889939,602.58,602.03,5.09720935]
[1746660417313,1.26889939,602.57,602.03,5.09720935]
[1746660417619,1.26889939,602.56,602.03,5.09720935]
[1746660417819,1.26889939,602.55,602.03,5.09720935]
[1746660418018,1.26889939,602.54,602.03,5.09720935]
[1746660418214,1.26889939,602.53,602.03,2.56920935]
[1746660418418,1.26889939,602.52,602.03,2.56920935]
[1746660418619,1.26889939,602.51,602.03,2.56920935]
[1746660418821,1.26889939,602.5,602.03,2.56920935]
[1746660419015,1.26889939,602.49,602.03,2.56920935]
[1746660419314,1.26889939,602.48,602.03,2.56920935]
[1746660419515,1.26889939,602.47,602.03,2.56920935]
[1746660419718,0.28890937,602.88,602.03,2.56920935]
[1746660419915,1.26902504,602.87,602.03,2.56920935]
[1746660420115,1.26902504,602.86,602.03,2.56920935]
[1746660420316,1.26902504,602.85,602.03,2.56920935]
[1746660420617,1.26902504,602.84,602.03,2.56920935]
[1746660420819,1.26910977,602.83,602.03,2.56920935]
[1746660421020,1.26910977,602.82,602.03,2.56920935]
[1746660421317,1.26910977,602.81,602.03,2.56920935]
[1746660421521,1.26910977,602.8,602.03,2.56920935]
[1746660421719,1.26910977,602.79,602.03,3.43520935]
[1746660421919,1.26910977,602.78,602.03,4.59120935]
[1746660422123,1.26910977,602.77,602.03,4.59120935]
[1746660422320,1.26932509,602.76,602.03,4.59120935]
[1746660422625,1.26932509,602.75,602.03,4.59120935]
[1746660422925,1.26932509,602.74,602.03,4.59120935]
[1746660423119,1.26932509,602.73,602.03,4.59120935]
[1746660423324,1.26932509,602.72,602.03,4.59120935]
[1746660423521,1.26932509,602.71,602.03,4.59120935]
[1746660423724,1.26932509,602.7,602.03,4.59120935]
[1746660423920,1.26932509,602.69,602.03,4.59120935]
[1746660424221,1.26961792,602.68,602.03,4.59120935]
[1746660424525,1.26961792,602.67,602.03,4.59120935]
[1746660424724,1.26961792,602.66,602.03,4.59120935]
[1746660425024,1.26961792,602.65,602.03,4.59120935]
[1746660425224,1.26961792,602.64,602.03,4.59120935]
[1746660425525,1.26961792,602.63,602.03,4.59120935]
[1746660425725,1.26961792,602.62,602.03,4.59120935]
[1746660425926,1.26961792,602.61,602.03,4.59120935]
[1746660426126,1.26979317,602.6,602.03,4.59120935]
[1746660426326,1.26979317,602.59,602.03,4.59120935]
[1746660426526,1.26979317,602.58,602.03,4.59120935]
[1746660426727,1.26979317,602.57,602.03,4.59120935]
[1746660426932,1.26979317,602.56,602.03,4.59120935]
[1746660427224,1.26979317,602.55,602.03,4.59120935]
[1746660427425,1.26979317,602.54,602.03,3.63620935]
[1746660427628,1.26979317,602.53,602.03,3.63620935]
[1746660427929,1.26979317,602.52,602.03,3.63620935]
[1746660428128,1.26979317,602.51,602.03,3.63620935]
[1746660428324,1.26979317,602.5,602.03,3.63620935]
[1746660428526,1.26979317,602.49,602.03,3.63620935]
[1746660428727,1.26979317,602.48,602.03,3.63620935]
[1746660428923,0.28890937,602.87,602.03,3.63620935]
[1746660428924,1.26979317,602.47,602.03,3.63620935]
[1746660429125,1.26979317,602.46,602.03,3.63620935]
[1746660429329,1.26979317,602.45,602.03,3.63620935]
[1746660429629,1.27082077,602.44,602.03,3.63620935]
[1746660429924,1.27082173,602.43,602.03,3.63620935]
[1746660430129,1.27106945,602.42,602.03,3.63620935]
[1746660430430,1.27106945,602.41,602.03,3.63620935]
[1746660430630,1.27106945,602.4,602.03,3.63620935]
[1746660430830,0.28893335,602.83,602.03,3.63620935]
[1746660431026,1.27100325,602.82,602.03,3.63620935]
[1746660431226,0.28893335,602.83,602.03,3.63620935]
[1746660431227,1.27100325,602.81,602.03,3.63620935]
[1746660431432,2.27138029,602.8,602.03,3.63620935]
[1746660431625,1.27100325,602.79,602.03,3.63620935]
[1746660431829,1.27100325,602.78,602.03,3.63620935]
[1746660432131,2.27138029,602.77,602.03,3.63620935]
[1746660432324,1.27100325,602.76,602.03,3.63620935]
[1746660432529,1.27100325,602.75,602.03,3.63620935]
[1746660432726,1.27100325,602.74,602.03,3.63620935]
[1746660432930,1.27100325,602.73,602.03,3.63620935]
[1746660433126,1.27100325,602.72,602.03,3.63620935]
[1746660433330,2.27138029,602.71,602.03,3.63620935]
[1746660433632,2.27138029,602.7,602.03,3.63620935]
[1746660433831,2.27138029,602.69,602.03,3.63620935]
[1746660434127,2.27215329,602.68,602.03,3.63620935]
[1746660434332,2.27215329,602.67,602.03,3.63620935]
[1746660434531,1.27177625,602.66,602.03,3.63620935]
[1746660434732,1.27177625,602.65,602.03,3.63620935]
[1746660434933,2.27215329,602.64,602.03,3.63620935]
[1746660435131,1.27177625,602.63,602.03,3.63620935]
[1746660435333,2.27215329,602.62,602.03,3.63620935]
[1746660435536,1.27177625,602.61,602.03,3.63620935]
[1746660435735,1.27216794,602.6,602.03,3.63620935]
[1746660436031,1.27238008,602.59,602.03,3.63620935]
[1746660436235,1.27238008,602.58,602.03,3.63620935]
[1746660436535,2.27275712,602.57,602.03,3.63620935]
[1746660436729,1.27238008,602.56,602.03,3.63620935]
[1746660436930,1.00037704,602.57,602.03,3.63620935]
[1746660436931,1.27238008,602.55,602.03,3.63620935]
[1746660437236,2.27275712,602.54,602.03,3.63620935]
[1746660437434,1.27238008,602.53,602.03,3.63620935]
[1746660437735,1.27238008,602.52,602.03,3.63620935]
[1746660437932,1.2719678,602.51,602.03,3.63620935]
[1746660438137,2.27234484,602.5,602.03,3.63620935]
[1746660438337,1.2719678,602.49,602.03,3.63620935]
[1746660438535,2.27234484,602.48,602.03,3.63620935]
[1746660438740,1.2719678,602.47,602.03,3.63620935]
[1746660439038,2.27234484,602.46,602.03,2.35420935]
[1746660439238,1.2719678,602.45,602.03,2.35420935]
[1746660439438,2.27234484,602.44,602.03,2.35420935]
[1746660439635,1.2719678,602.43,602.03,2.35420935]
[1746660439835,1.27179804,602.42,602.03,2.35420935]
[1746660440035,2.27217508,602.41,602.03,2.35420935]
[1746660440239,1.27179804,602.4,602.03,2.35420935]
[1746660440435,1.27179804,602.39,602.03,2.35420935]
[1746660440741,2.27217508,602.38,602.03,2.35420935]
[1746660440939,1.00037704,602.37,602.03,2.35420935]
[1746660441641,1.00037704,602.36,602.03,2.35420935]
[1746660442039,1.00037704,602.35,602.03,2.35420935]
[1746660442542,1.00037704,602.34,602.03,2.35420935]
[1746660442936,1.00037704,602.34,602.03,1.48820935]
[1746660443239,1.00037704,602.33,602.03,1.48820935]
[1746660443942,0.28894535,602.74,602.03,1.48820935]
[1746660444241,1.27123774,602.73,602.03,1.48820935]
[1746660444439,2.27045293,602.72,602.03,1.48820935]
[1746660444641,1.27123774,602.71,602.03,1.48820935]
[1746660444837,1.27123774,602.7,602.03,1.48820935]
[1746660445037,1.27123774,602.69,602.03,1.48820935]
[1746660445239,1.27123774,602.68,602.03,1.48820935]
[1746660445439,1.27123774,602.67,602.03,2.33520935]
[1746660445639,2.26975949,602.66,602.03,2.33520935]
[1746660445935,1.2705443,602.65,602.03,2.33520935]
[1746660446140,2.26975949,602.64,602.03,2.33520935]
[1746660446436,1.2705443,602.63,602.03,2.33520935]
[1746660446739,1.2705443,602.62,602.03,2.33520935]
[1746660446939,1.2705443,602.61,602.03,2.33520935]
[1746660447142,2.26975949,602.6,602.03,2.33520935]
[1746660447338,1.2705443,602.59,602.03,2.33520935]
[1746660447642,0.28894535,602.74,602.03,2.33520935]
[1746660447643,2.26975949,602.58,602.03,2.33520935]
[1746660447843,1.2705443,602.57,602.03,2.33520935]
[1746660448141,1.2705443,602.56,602.03,2.33520935]
[1746660448344,2.26975949,602.55,602.03,2.33520935]
[1746660448543,1.2705443,602.54,602.03,2.33520935]
[1746660448843,2.26975949,602.53,602.03,1.17920935]
[1746660449038,1.2705443,602.52,602.03,1.17920935]
[1746660449236,2.26975949,602.51,602.03,1.17920935]
[1746660449441,1.269697,602.5,602.03,1.17920935]
[1746660449642,2.26891219,602.49,602.03,1.17920935]
[1746660449841,1.269697,602.48,602.03,1.17920935]
[1746660450140,1.269697,602.47,602.03,1.17920935]
[1746660450338,2.26891219,602.46,602.03,1.17920935]
[1746660450542,1.269697,602.45,602.03,1.17920935]
[1746660450840,1.269697,602.44,602.03,1.17920935]
[1746660451041,1.269697,602.43,602.03,1.17920935]
[1746660451245,1.269697,602.42,602.03,1.17920935]
[1746660451443,1.269697,602.41,602.03,1.17920935]
[1746660451644,1.269697,602.4,602.03,1.17920935]
[1746660451843,1.269697,602.39,602.03,1.17920935]
[1746660452040,0.99921519,602.39,602.03,1.17920935]
[1746660452543,0.99921519,602.38,602.03,1.17920935]
[1746660452945,0.99921519,602.37,602.03,1.17920935]
[1746660453244,0.99921519,602.36,602.03,1.17920935]
[1746660453742,0.99921519,602.35,602.03,1.17920935]
[1746660454245,0.28894775,602.74,602.03,1.17920935]
[1746660454440,2.27006167,602.73,602.03,1.17920935]
[1746660454640,1.27114831,602.72,602.03,1.17920935]
[1746660454846,1.27114831,602.71,602.03,1.17920935]
[1746660455043,2.27006167,602.7,602.03,1.17920935]
[1746660455346,2.27012435,602.69,602.03,1.17920935]
[1746660455642,1.27121099,602.68,602.03,1.17920935]
[1746660455947,2.27012435,602.67,602.03,1.17920935]
[1746660456140,1.27121099,602.66,602.03,2.48120935]
[1746660456344,1.27121099,602.65,602.03,2.48120935]
[1746660456546,1.27121099,602.64,602.03,2.48120935]
[1746660456748,2.27012435,602.63,602.03,2.48120935]
[1746660456949,1.27121099,602.62,602.03,2.48120935]
[1746660457145,1.27121099,602.61,602.03,2.48120935]
[1746660457342,1.27121099,602.6,602.03,2.48120935]
[1746660457543,0.99891336,602.63,602.03,2.48120935]
[1746660457544,1.27121099,602.59,602.03,2.48120935]
[1746660457747,2.27012435,602.58,602.03,2.48120935]
[1746660457946,1.27121099,602.57,602.03,2.48120935]
[1746660458151,1.27121099,602.56,602.03,2.48120935]
[1746660458447,2.27012435,602.55,602.03,2.48120935]
[1746660458647,2.27012435,602.54,602.03,2.48120935]
[1746660458946,2.27095744,602.53,602.03,1.63420935]
[1746660459146,2.27095744,602.52,602.03,1.63420935]
[1746660459348,2.27095744,602.51,602.03,1.63420935]
[1746660459550,1.27204408,602.5,602.03,1.63420935]
[1746660459751,1.27204408,602.49,602.03,1.63420935]
[1746660459950,1.27204408,602.48,602.03,1.63420935]
[1746660460248,2.27079876,602.47,602.03,1.63420935]
[1746660460444,0.99875468,602.47,602.03,1.63420935]
[1746660460648,1.2719819,602.46,602.03,1.63420935]
[1746660460842,2.27073658,602.45,602.03,1.63420935]
[1746660461046,0.99875468,602.45,602.03,1.63420935]
[1746660461346,0.99875468,602.44,602.03,1.63420935]
[1746660462048,0.99875468,602.43,602.03,1.63420935]
[1746660462548,0.99875468,602.42,602.03,1.63420935]
[1746660463153,0.99875468,602.41,602.03,1.63420935]
[1746660463855,0.28891776,602.87,602.03,1.63420935]
[1746660464149,2.26862653,602.86,602.03,1.63420935]
[1746660464349,1.27019919,602.85,602.03,1.63420935]
[1746660464655,2.26862653,602.84,602.03,1.63420935]
[1746660464847,2.26862653,602.83,602.03,1.63420935]
[1746660465049,1.27019919,602.82,602.03,1.63420935]
[1746660465251,2.26862653,602.81,602.03,1.63420935]
[1746660465453,1.27019919,602.8,602.03,1.63420935]
[1746660465650,1.27019919,602.79,602.03,1.63420935]
[1746660465955,1.27019919,602.78,602.03,1.63420935]
[1746660466254,0.28891776,602.87,602.03,1.63420935]
[1746660466255,2.26862653,602.77,602.03,1.63420935]
[1746660466448,1.27019919,602.76,602.03,1.63420935]
[1746660466649,1.27019919,602.75,602.03,1.63420935]
[1746660466849,1.27019919,602.74,602.03,1.63420935]
[1746660467150,2.26862653,602.73,602.03,2.58520935]
[1746660467353,1.27019919,602.72,602.03,2.58520935]
[1746660467649,2.26862653,602.71,602.03,2.58520935]
[1746660467848,2.26862653,602.7,602.03,2.58520935]
[1746660468051,1.27019919,602.69,602.03,2.58520935]
[1746660468249,1.27019919,602.68,602.03,2.58520935]
[1746660468453,1.27019919,602.67,602.03,2.58520935]
[1746660468653,2.26862653,602.66,602.03,2.58520935]
[1746660468856,1.27019919,602.65,602.03,2.58520935]
[1746660469156,1.27019919,602.64,602.03,2.58520935]
[1746660469359,2.26862653,602.63,602.03,2.58520935]
[1746660469656,2.26862653,602.62,602.03,2.58520935]
[1746660469853,1.27019919,602.61,602.03,2.58520935]
[1746660470057,2.26862653,602.6,602.03,2.58520935]
[1746660470257,1.26895272,602.59,602.03,2.58520935]
[1746660470451,2.26738006,602.58,602.03,2.58520935]
[1746660470655,0.2888626,602.98,602.03,2.58520935]
[1746660470656,0.99842734,602.57,602.03,2.58520935]
[1746660470858,0.99842734,602.56,602.03,2.58520935]
[1746660471056,0.99842734,602.55,602.03,2.58520935]
[1746660471557,0.99842734,602.54,602.03,2.58520935]
[1746660471859,0.99842734,602.53,602.03,2.58520935]
[1746660472258,0.2888626,602.98,602.03,2.58520935]
[1746660472453,0.99810247,602.97,602.03,2.58520935]
[1746660472759,1.26882751,602.96,602.03,2.58520935]
[1746660473058,2.26692998,602.95,602.03,2.58520935]
[1746660473257,1.26882751,602.94,602.03,2.58520935]
[1746660473453,1.26882751,602.93,602.03,2.58520935]
[1746660473654,2.26684111,602.92,602.03,2.58520935]
[1746660473858,1.26882751,602.91,602.03,2.58520935]
[1746660474057,0.9980136,602.92,602.03,2.58520935]
[1746660474058,2.26684111,602.9,602.03,2.58520935]
[1746660474259,1.26871343,602.89,602.03,2.58520935]
[1746660474553,2.26672556,602.88,602.03,2.58520935]
[1746660474756,1.26871221,602.87,602.03,2.58520935]
[1746660474952,2.26672556,602.86,602.03,2.58520935]
[1746660475157,1.26871371,602.85,602.03,2.58520935]
[1746660475458,2.26672892,602.84,602.03,2.58520935]
[1746660475658,1.26871557,602.83,602.03,2.58520935]
[1746660475858,1.26871557,602.82,602.03,2.58520935]
[1746660476054,1.26871557,602.81,602.03,2.58520935]
[1746660476259,2.26672892,602.8,602.03,2.58520935]
[1746660476555,2.26672892,602.79,602.03,2.58520935]
[1746660476760,1.26871557,602.78,602.03,2.58520935]
[1746660476958,1.26928589,602.77,602.03,2.58520935]
[1746660477159,1.26928589,602.76,602.03,2.58520935]
[1746660477355,2.26729924,602.75,602.03,2.58520935]
[1746660477559,1.26928589,602.74,602.03,2.58520935]
[1746660477764,1.26928589,602.73,602.03,2.58520935]
[1746660478058,2.26729924,602.72,602.03,2.58520935]
[1746660478257,1.26928589,602.71,602.03,2.58520935]
[1746660478457,1.26928589,602.7,602.03,2.58520935]
[1746660478661,1.26928589,602.69,602.03,3.40220935]
[1746660478862,1.26928589,602.68,602.03,3.40220935]
[1746660479063,1.26928589,602.67,602.03,3.40220935]
[1746660479263,2.26729924,602.66,602.03,3.40220935]
[1746660479465,1.26928589,602.65,602.03,3.40220935]
[1746660479665,1.26928589,602.64,602.03,3.40220935]
[1746660479965,1.26928589,602.63,602.03,3.40220935]
[1746660480265,2.26729924,602.62,602.03,3.40220935]
[1746660480465,1.26928589,602.61,602.03,3.40220935]
[1746660480666,1.26928589,602.6,602.03,3.40220935]
[1746660480867,0.99801335,602.62,602.03,3.40220935]
[1746660481067,1.26967077,602.61,602.03,3.40220935]
[1746660481368,1.26967077,602.6,602.03,3.40220935]
[1746660481565,0.99801335,602.61,602.03,3.40220935]
[1746660481763,0.99801335,602.59,602.03,3.40220935]
[1746660482168,0.99801335,602.58,602.03,3.40220935]
[1746660482468,0.99801335,602.57,602.03,3.40220935]
[1746660482668,0.99801335,602.56,602.03,3.40220935]
[1746660482969,0.28887819,602.94,602.03,3.40220935]
[1746660483164,2.26756766,602.93,602.03,3.40220935]
[1746660483368,1.2695482,602.92,602.03,3.40220935]
[1746660483566,2.26756766,602.91,602.03,3.40220935]
[1746660483869,2.26746495,602.9,602.03,3.40220935]
[1746660484070,1.26944549,602.89,602.03,3.40220935]
[1746660484269,2.26746495,602.88,602.03,3.40220935]
[1746660484569,1.26944549,602.87,602.03,3.40220935]
[1746660484772,1.26944549,602.86,602.03,3.40220935]
[1746660484963,1.26944549,602.85,602.03,3.40220935]
[1746660485165,1.26944549,602.84,602.03,3.40220935]
[1746660485468,2.26746495,602.83,602.03,3.40220935]
[1746660485669,1.26898095,602.82,602.03,3.40220935]
[1746660485869,1.26898095,602.81,602.03,3.40220935]
[1746660486068,1.26898095,602.8,602.03,3.40220935]
[1746660486266,2.26700041,602.79,602.03,3.40220935]
[1746660486471,1.26898095,602.78,602.03,3.40220935]
[1746660486767,1.26898095,602.77,602.03,3.40220935]
[1746660486966,2.26700041,602.76,602.03,3.40220935]
[1746660487171,1.26898095,602.75,602.03,3.40220935]
[1746660487472,2.26700041,602.74,602.03,3.40220935]
[1746660487772,2.26700041,602.73,602.03,3.40220935]
[1746660487966,1.26898095,602.72,602.03,3.40220935]
[1746660488270,1.26898095,602.71,602.03,3.40220935]
[1746660488467,2.26700041,602.7,602.03,3.40220935]
[1746660488674,1.26898095,602.69,602.03,4.46120935]
[1746660488872,2.26700041,602.68,602.03,4.46120935]
[1746660489073,2.26700041,602.67,602.03,4.46120935]
[1746660489373,1.26845088,602.66,602.03,4.46120935]
[1746660489571,2.26647034,602.65,602.03,4.46120935]
[1746660489771,1.26845088,602.64,602.03,4.46120935]
[1746660489972,2.26647034,602.63,602.03,4.46120935]
[1746660490168,2.26647034,602.62,602.03,4.46120935]
[1746660490369,0.99801946,602.61,602.03,4.46120935]
[1746660493475,0.99801946,602.6,602.03,4.46120935]
[1746660493776,0.99801946,602.59,602.03,4.46120935]
[1746660494276,0.99801946,602.58,602.03,4.46120935]
[1746660494673,0.28887699,602.94,602.03,4.46120935]
[1746660494978,1.26778292,602.93,602.03,4.46120935]
[1746660495274,1.26778292,602.92,602.03,4.46120935]
[1746660495474,1.26778292,602.91,602.03,4.46120935]
[1746660495678,1.26778292,602.9,602.03,4.46120935]
[1746660495879,1.26778292,602.89,602.03,4.46120935]
[1746660496074,2.26477119,602.88,602.03,4.46120935]
[1746660496279,1.26778292,602.87,602.03,4.46120935]
[1746660496582,1.26778292,602.86,602.03,4.46120935]
[1746660496780,1.26778292,602.85,602.03,4.46120935]
[1746660496980,1.26778292,602.84,602.03,4.46120935]
[1746660497180,1.26778292,602.83,602.03,4.46120935]
[1746660497380,1.26778292,602.82,602.03,4.46120935]
[1746660497681,2.26477119,602.81,602.03,4.46120935]
[1746660497881,1.26778292,602.8,602.03,4.46120935]
[1746660498177,2.26477119,602.79,602.03,4.46120935]
[1746660498381,2.26477119,602.78,602.03,4.46120935]
[1746660498579,1.26778292,602.77,602.03,4.46120935]
[1746660498777,2.26477119,602.76,602.03,4.46120935]
[1746660498975,1.26778292,602.75,602.03,4.46120935]
[1746660499279,2.26477119,602.74,602.03,4.46120935]
[1746660499477,1.26778292,602.73,602.03,4.46120935]
[1746660499681,2.26477119,602.72,602.03,4.46120935]
[1746660499879,1.26778292,602.71,602.03,4.46120935]
[1746660500082,1.26778292,602.7,602.03,4.46120935]
[1746660500282,1.26778292,602.69,602.03,4.46120935]
[1746660500476,1.26778292,602.68,602.03,4.46120935]
[1746660500677,2.26477119,602.67,602.03,4.46120935]
[1746660500880,1.26778292,602.66,602.03,4.46120935]
[1746660501077,1.26778292,602.65,602.03,4.46120935]
[1746660501279,2.26477119,602.64,602.03,4.46120935]
[1746660501481,1.26778292,602.63,602.03,4.46120935]
[1746660501685,2.26477119,602.62,602.03,4.46120935]
[1746660501884,1.26778292,602.61,602.03,4.46120935]
[1746660502080,0.99698827,602.62,602.03,4.46120935]
[1746660502385,2.26795268,602.61,602.03,4.46120935]